bitfinex-derivatives/quotes_SOLF0:USTF0_20260203
["timestamp","ask_amount","ask_price","bid_price","bid_amount"]
[1770113002793,5.23177375,103.21,103.15,13.89952797]
[1770113004897,5.23177375,103.2,103.15,5.16702797]
[1770113005399,5.23177375,103.22,103.16,5.16702797]
[1770113005992,8.7279,103.21,103.16,5.16702797]
[1770113006195,5.23177375,103.21,103.16,5.16702797]
[1770113006404,7.63623512,103.21,103.16,5.16702797]
[1770113006597,2.40446137,103.22,103.17,5.16702797]
[1770113007195,5.23177375,103.21,103.15,13.89942797]
[1770113007402,7.63623512,103.2,103.15,13.89942797]
[1770113007597,2.40446137,103.2,103.15,13.89942797]
[1770113008798,7.63623512,103.2,103.12,138.28076137]
[1770113009009,2.40446137,103.18,103.13,5.16702797]
[1770113009400,2.40446137,103.2,103.14,5.16702797]
[1770113009699,2.40446137,103.22,103.14,5.16702797]
[1770113010097,5.23177375,103.21,103.16,5.16702797]
[1770113010304,7.63623512,103.18,103.12,5.16702797]
[1770113010603,16.36633512,103.18,103.12,13.90132797]
[1770113011004,16.36633512,103.18,103.12,5.16702797]
[1770113011601,2.40446137,103.16,103.12,5.16702797]
[1770113012408,5.23177375,103.17,103.12,5.16702797]
[1770113013398,5.23177375,103.17,103.12,13.90192797]
[1770113014712,5.23177375,103.19,103.12,5.16702797]
[1770113015203,5.23177375,103.19,103.14,8.7333]
[1770113015403,5.23177375,103.18,103.12,5.16702797]
[1770113016098,13.96177375,103.18,103.12,13.90182797]
[1770113016502,5.23177375,103.18,103.12,5.16702797]
[1770113016703,5.23177375,103.18,103.13,8.7342]
[1770113017806,5.23177375,103.18,103.13,13.90122797]
[1770113020210,5.23177375,103.22,103.14,5.16702797]
[1770113020404,5.23177375,103.22,103.15,5.16702797]
[1770113021307,5.23177375,103.22,103.17,8.7306]
[1770113021611,5.23177375,103.22,103.16,5.16702797]
[1770113021911,13.95857375,103.22,103.16,5.16702797]
[1770113022111,5.23177375,103.2,103.14,5.16702797]
[1770113022609,255.46711452,103.21,103.12,13.90122797]
[1770113022610,5.23177375,103.19,103.12,13.90122797]
[1770113022802,5.23177375,103.18,103.12,13.90122797]
[1770113023003,5.23177375,103.18,103.12,5.16702797]
[1770113023205,5.23177375,103.18,103.14,8.7332]
[1770113023411,211.70077375,103.2,103.14,13.90022797]
[1770113023607,197.74,103.2,103.14,5.16702797]
[1770113023812,5.23177375,103.22,103.14,5.16702797]
[1770113024607,13.95857375,103.22,103.15,8.7324]
[1770113024812,249.12,103.23,103.15,13.89942797]
[1770113024813,5.23177375,103.21,103.15,13.89942797]
[1770113025711,5.23177375,103.19,103.11,5.16702797]
[1770113026816,13.96187375,103.18,103.11,13.90282797]
[1770113027110,5.23177375,103.17,103.09,5.16702797]
[1770113027515,5.23177375,103.17,103.07,5.16702797]
[1770113027516,5.23177375,103.15,103.07,5.16702797]
[1770113028315,13.96427375,103.15,103.08,8.7384]
[1770113028610,11.67888827,103.14,103.07,5.16702797]
[1770113029716,11.67888827,103.14,103.08,8.7383]
[1770113030014,5.23177375,103.14,103.08,13.90532797]
[1770113030217,8.7331,103.15,103.09,5.16702797]
[1770113030612,14.05924139,103.15,103.09,5.16702797]
[1770113030809,14.05764139,103.17,103.09,5.16702797]
[1770113031013,5.32614139,103.17,103.1,5.47890955]
[1770113031513,14.05704139,103.17,103.1,5.47890955]
[1770113032714,5.32614139,103.17,103.1,5.47890955]
[1770113033423,5.32614139,103.17,103.11,14.08191327]
[1770113033617,14.05704139,103.17,103.11,14.08191327]
[1770113034226,5.32614139,103.17,103.11,14.08191327]
[1770113035621,5.20369677,103.16,103.11,8.7358]
[1770113037326,13.93549677,103.16,103.09,14.08301327]
[1770113038229,13.93549677,103.16,103.1,5.34611327]
[1770113038427,13.93549677,103.16,103.1,14.08241327]
[1770113038623,5.20369677,103.16,103.1,5.34611327]
[1770113038829,8.7326,103.15,103.1,5.34611327]
[1770113039221,11.65081129,103.16,103.1,5.34611327]
[1770113039427,271.24271129,103.16,103.1,5.34611327]
[1770113039628,264.79559677,103.16,103.1,5.34611327]
[1770113040333,256.06369677,103.16,103.1,5.34611327]
[1770113040532,256.06369677,103.16,103.11,5.34611327]
[1770113041224,250.86,103.16,103.11,14.08121327]
[1770113041424,20.3812967,103.18,103.11,5.34611327]
[1770113042334,20.3812967,103.18,103.12,8.7349]
[1770113043531,11.6512967,103.18,103.13,8.7338]
[1770113043830,5.20369677,103.22,103.16,5.34611327]
[1770113044035,5.20369677,103.24,103.18,5.34611327]
[1770113044228,5.20369677,103.24,103.19,8.7291]
[1770113045135,205.46689677,103.26,103.2,8.728]
[1770113045337,13.92779677,103.25,103.18,5.34611327]
[1770113045532,5.20369677,103.25,103.19,14.07441327]
[1770113045726,252.58,103.26,103.19,5.34611327]
[1770113046131,252.58,103.26,103.21,8.7273]
[1770113046432,252.58,103.26,103.21,14.07341327]
[1770113047030,5.20369677,103.27,103.22,8.7265]
[1770113047635,5.20369677,103.27,103.21,14.07351327]
[1770113047935,5.20369677,103.27,103.21,5.34611327]
[1770113048434,258.40369677,103.27,103.21,5.34611327]
[1770113048827,5.20369677,103.26,103.19,5.34611327]
[1770113049328,5.20369677,103.26,103.2,5.34611327]
[1770113049937,5.20369677,103.25,103.18,5.34611327]
[1770113050532,13.92789677,103.25,103.18,14.07601327]
[1770113051227,5.20369677,103.24,103.18,14.07601327]
[1770113051832,5.20369677,103.23,103.16,5.34611327]
[1770113052639,5.20369677,103.23,103.17,5.34611327]
[1770113053133,5.20369677,103.23,103.17,14.07671327]
[1770113053334,5.20369677,103.19,103.12,5.34611327]
[1770113053733,5.20369677,103.18,103.12,5.34611327]
[1770113054336,259.72369677,103.18,103.12,5.34611327]
[1770113054738,5.20369677,103.18,103.12,5.34611327]
[1770113054933,259.78369677,103.18,103.12,5.34611327]
[1770113055133,5.20369677,103.16,103.1,5.34611327]
[1770113055338,259.90369677,103.16,103.08,5.34611327]
[1770113056439,268.63539677,103.16,103.09,8.7375]
[1770113056942,266.8512967,103.15,103.08,5.34611327]
[1770113057641,266.8512967,103.15,103.08,14.08451327]
[1770113058238,11.6512967,103.15,103.08,14.08451327]
[1770113058442,267.3312967,103.15,103.08,14.08451327]
[1770113058839,5.20369677,103.14,103.08,14.08451327]
[1770113059046,5.20369677,103.12,103.04,5.34611327]
[1770113059238,5.20369677,103.11,103.04,5.34611327]
[1770113060241,20.3872967,103.11,103.04,5.34611327]
[1770113061334,5.37941841,103.1,103.03,8.7426]
[1770113061537,5.37941841,103.08,103.02,5.09712139]
[1770113062134,5.37941841,103.08,103.02,13.84052139]
[1770113070743,5.37941841,103.08,103.03,13.83972139]
[1770113074256,5.37941841,103.08,103.04,8.7418]
[1770113074552,256.52,103.09,103.04,8.7418]
[1770113076456,11.82701834,103.1,103.05,8.7409]
[1770113076957,176.56,103.11,103.06,13.83722139]
[1770113078160,176.56,103.11,103.06,5.09712139]
[1770113078460,5.37941841,103.14,103.08,5.09712139]
[1770113078853,5.37941841,103.14,103.09,8.7368]
[1770113079753,5.37941841,103.13,103.06,141.05182139]
[1770113080153,5.37941841,103.13,103.06,141.05502139]
[1770113080360,5.37941841,103.13,103.08,8.7377]
[1770113084162,14.11391841,103.13,103.07,13.83622139]
[1770113085362,278.39391841,103.13,103.07,13.83622139]
[1770113086265,14.11391841,103.13,103.07,13.83622139]
[1770113086465,278.71391841,103.13,103.07,13.83622139]
[1770113086961,269.97941841,103.13,103.07,13.83622139]
[1770113087260,8.7336,103.14,103.08,13.83542139]
[1770113087464,5.37941841,103.15,103.08,13.83542139]
[1770113087465,270.19941841,103.15,103.08,5.09712139]
[1770113087862,270.19941841,103.15,103.09,8.7368]
[1770113088065,5.37941841,103.15,103.08,5.09712139]
[1770113088666,5.37941841,103.15,103.1,8.7367]
[1770113089064,5.37941841,103.15,103.1,13.83382139]
[1770113089362,5.37941841,103.14,103.07,5.09712139]
[1770113089972,11.82701834,103.14,103.07,5.09712139]
[1770113090363,277.10041834,103.14,103.08,8.7382]
[1770113090561,277.10041834,103.14,103.08,13.97993003]
[1770113090770,261.91941841,103.14,103.08,5.24173003]
[1770113091166,5.14112525,103.13,103.06,5.24173003]
[1770113091464,5.14112525,103.11,103.04,5.24173003]
[1770113092369,5.14112525,103.11,103.06,8.74]
[1770113092760,5.14112525,103.11,103.04,5.24173003]
[1770113092969,11.58872518,103.11,103.04,5.24173003]
[1770113093263,277.54872518,103.11,103.04,5.24173003]
[1770113093766,5.43755305,103.1,103.04,13.98343003]
[1770113093964,271.63755305,103.1,103.02,5.44942823]
[1770113094772,271.63755305,103.1,103.04,8.7417]
[1770113095671,271.63755305,103.1,103.03,5.44942823]
[1770113095672,5.43755305,103.09,103.03,14.19192823]
[1770113097167,5.43755305,103.08,103.03,5.44942823]
[1770113097374,5.43755305,103.08,102.99,5.44942823]
[1770113097670,272.93755305,103.07,102.99,5.44942823]
[1770113098172,5.43755305,103.07,102.99,5.44942823]
[1770113098371,273.09755305,103.07,103.01,8.7443]
[1770113098568,273.09755305,103.07,103.01,14.19372823]
[1770113098874,273.09755305,103.07,103.01,5.44942823]
[1770113099265,273.09755305,103.07,103.01,14.19372823]
[1770113102679,5.43755305,103.06,103.01,14.19372823]
[1770113102878,5.43755305,103.06,102.99,15.37282613]
[1770113103080,5.43755305,103.06,103.0,5.44942823]
[1770113103775,5.43755305,103.05,102.98,14.19572823]
[1770113104470,5.43755305,103.05,102.98,8.7463]
[1770113105183,5.43755305,103.04,102.99,14.19552823]
[1770113106378,5.43755305,103.04,102.99,5.44942823]
[1770113108381,5.43755305,103.04,102.99,14.19542823]
[1770113109684,270.5,103.05,103.0,5.44942823]
[1770113109885,270.5,103.05,103.0,14.19432823]
[1770113110085,5.43755305,103.06,103.01,5.44942823]
[1770113113083,5.43755305,103.03,102.97,8.7471]
[1770113113288,277.85755305,103.03,102.97,8.7471]
[1770113113587,277.85755305,103.03,102.98,14.19602823]
[1770113114086,272.42,103.03,102.99,14.19522823]
[1770113114288,5.43755305,103.07,103.0,5.44942823]
[1770113114588,260.77755305,103.07,103.0,5.44942823]
[1770113115290,260.77755305,103.07,103.01,8.7442]
[1770113115488,5.43755305,103.06,103.0,5.44942823]
[1770113116385,5.43755305,103.06,103.0,14.19462823]
[1770113117086,5.43755305,103.05,103.0,5.44942823]
[1770113117290,279.82067683,103.07,103.0,5.44942823]
[1770113117291,278.79755305,103.07,103.0,5.44942823]
[1770113118184,5.43755305,103.06,103.0,5.44942823]
[1770113118687,5.43755305,103.05,103.0,5.44942823]
[1770113119188,5.43755305,103.05,102.98,14.19552823]
[1770113119789,5.43755305,103.04,102.98,14.19552823]
[1770113121695,279.79755305,103.04,102.98,14.19552823]
[1770113121992,279.79755305,103.04,102.99,8.7459]
[1770113122788,279.79755305,103.04,102.99,13.84921958]
[1770113124098,279.79755305,103.04,103.0,8.7452]
[1770113124298,274.36,103.04,103.0,13.84851958]
[1770113124496,5.46712721,103.06,103.0,13.84851958]
[1770113124497,2.4120161,103.05,103.0,13.84851958]
[1770113128704,7.87914331,103.05,103.0,13.84851958]
[1770113128906,7.87914331,103.05,103.0,8.7452]
[1770113129804,2.4120161,103.03,103.0,8.7452]
[1770113132803,5.46712721,103.05,103.0,8.7452]
[1770113133003,2.4120161,103.05,103.01,5.10331958]
[1770113133507,278.9720161,103.06,103.01,13.84751958]
[1770113134308,2.4120161,103.06,103.01,13.84751958]
[1770113136602,7.87914331,103.06,103.01,13.84751958]
[1770113136910,2.4120161,103.04,103.01,13.84751958]
[1770113137202,5.46712721,103.06,102.99,5.10331958]
[1770113137403,2.4120161,103.05,103.0,5.10331958]
[1770113137910,2.4120161,103.05,103.02,8.7433]
[1770113138312,7.87914331,103.07,103.02,8.7433]
[1770113138807,2.4120161,103.07,103.03,8.7426]
[1770113139912,2.4120161,103.07,103.03,13.84591958]
[1770113140717,2.4120161,103.07,103.03,5.10331958]
[1770113141816,2.4120161,103.05,103.01,5.10331958]
[1770113143414,2.4120161,103.05,103.01,13.84751958]
[1770113144314,2.4120161,103.07,103.02,13.84681958]
[1770113144615,2.4120161,103.07,103.03,5.10331958]
[1770113145518,2.4120161,103.09,103.04,5.10331958]
[1770113146015,2.4120161,103.09,103.05,13.84421958]
[1770113146208,2.4120161,103.11,103.06,5.10331958]
[1770113147209,7.87914331,103.09,103.04,5.10331958]
[1770113147613,7.87914331,103.09,103.04,13.84501958]
[1770113148415,2.4120161,103.07,103.02,5.10331958]
[1770113149821,2.4120161,103.07,103.02,13.84611958]
[1770113150120,2.4120161,103.07,103.03,5.10331958]
[1770113152524,2.4120161,103.07,103.03,13.84591958]
[1770113153419,5.46712721,103.09,103.04,5.52260157]
[1770113153621,243.02053284,103.11,103.05,5.52260157]
[1770113153922,2.4120161,103.09,103.05,14.26350157]
[1770113154317,7.65254894,103.09,103.03,5.52260157]
[1770113154815,2.4120161,103.09,103.05,5.52260157]
[1770113155525,2.4120161,103.07,103.03,5.52260157]
[1770113158626,2.4120161,103.07,103.03,14.26510157]
[1770113162521,279.34,103.1,103.04,5.52260157]
[1770113162826,2.41108029,103.09,103.04,5.52260157]
[1770113163027,2.41108029,103.09,103.05,8.7403]
[1770113163226,2.41108029,103.09,103.05,14.26290157]
[1770113163829,2.41108029,103.09,103.04,14.26430157]
[1770113164028,2.41108029,103.07,103.02,5.52260157]
[1770113164429,5.24053284,103.08,103.02,5.52260157]
[1770113164430,2.41108029,103.05,103.02,5.52260157]
[1770113164828,2.41108029,103.05,103.0,5.52260157]
[1770113165033,2.41108029,103.05,103.0,14.26760157]
[1770113166335,5.24053284,103.06,103.0,14.26760157]
[1770113166531,15.20174563,103.07,102.98,14.26880157]
[1770113166532,5.24053284,103.04,102.98,14.26880157]
[1770113166836,5.24053284,103.04,102.98,5.52260157]
[1770113167234,5.24053284,103.04,102.98,14.26940157]
[1770113167435,5.24053284,103.04,102.99,5.52260157]
[1770113170238,15.20404563,103.05,103.0,5.52260157]
[1770113170535,6.46234563,103.05,103.0,5.52260157]
[1770113170736,11.70287847,103.05,103.0,5.52260157]
[1770113171038,11.70287847,103.05,103.0,14.26760157]
[1770113171337,5.24053284,103.05,103.0,14.26760157]
[1770113172034,5.24053284,103.05,103.0,5.52260157]
[1770113175336,13.98153284,103.05,103.0,5.52260157]
[1770113177440,5.24053284,103.05,103.0,5.52260157]
[1770113180241,5.23359617,103.04,102.99,8.7459]
[1770113180442,5.23359617,103.04,102.99,5.34319393]
[1770113180742,13.97559617,103.04,102.99,5.34319393]
[1770113180942,5.23359617,103.04,102.99,14.08929393]
[1770113181242,5.23359617,103.04,102.99,5.34319393]
[1770113182446,13.97559617,103.04,102.99,5.34319393]
[1770113182839,5.23359617,103.04,102.99,14.08909393]
[1770113183048,291.9012,103.05,103.0,5.34319393]
[1770113183350,13.97479617,103.05,103.0,5.34319393]
[1770113184751,13.97479617,103.05,103.0,14.08819393]
[1770113184948,297.79379617,103.06,103.01,5.34319393]
[1770113186444,2.41228564,103.05,103.01,5.34319393]
[1770113186945,11.15338564,103.05,103.01,5.34319393]
[1770113187152,289.05359617,103.06,102.97,14.8817873]
[1770113187153,7.64588181,103.03,102.97,14.8817873]
[1770113187351,2.41228564,103.01,102.98,5.34319393]
[1770113188754,2.41228564,103.03,102.98,5.34319393]
[1770113190453,2.41228564,103.03,102.98,14.08999393]
[1770113191859,2.41228564,103.03,103.0,5.34319393]
[1770113192561,248.48588181,103.05,103.0,14.08829393]
[1770113192756,248.48588181,103.05,103.0,5.34319393]
[1770113193461,248.48588181,103.05,103.0,14.08829393]
[1770113194059,7.64588181,103.05,103.0,14.08829393]
[1770113197859,2.41228564,103.03,102.99,8.7459]
[1770113201263,2.41228564,103.03,102.98,14.08999393]
[1770113201565,2.41228564,103.01,102.97,9.53859337]
[1770113201762,2.41228564,103.01,102.97,8.7476]
[1770113203658,7.64588181,103.01,102.97,8.7476]
[1770113203856,7.64588181,103.01,102.96,5.34319393]
[1770113203857,7.64588181,103.01,102.96,14.09169393]
[1770113204967,7.64588181,103.01,102.97,8.7478]
[1770113208266,294.57359617,103.03,102.98,14.08989393]
[1770113208463,2.41228564,103.02,102.98,5.34319393]
[1770113208671,2.41228564,103.04,102.98,5.34319393]
[1770113209263,2.41228564,103.04,102.99,8.7459]
[1770113209469,2.41228564,103.04,102.99,14.08909393]
[1770113209664,7.64588181,103.04,102.99,14.08909393]
[1770113209971,7.64588181,103.04,102.99,5.34319393]
[1770113209972,2.41228564,103.02,102.99,5.34319393]
[1770113211772,2.41228564,103.02,102.97,13.93295534]
[1770113218583,7.3238812,103.02,102.97,13.93295534]
[1770113220880,2.41228564,103.02,102.99,5.12682368]
[1770113221084,298.3238812,103.04,102.99,5.12682368]
[1770113221388,7.3238812,103.04,102.99,5.12682368]
[1770113221587,7.3238812,103.04,102.99,13.87222368]
[1770113221887,7.3238812,103.06,103.0,5.12682368]
[1770113222086,2.41228564,103.06,103.0,5.12682368]
[1770113222287,2.41228564,103.06,103.02,5.12682368]
[1770113222584,2.41108986,103.07,103.02,5.12682368]
[1770113224789,7.32268542,103.07,103.02,5.12682368]
[1770113225792,16.06208542,103.07,103.02,5.12682368]
[1770113225987,7.32268542,103.05,103.0,13.87182368]
[1770113227391,4.91159556,103.16,103.07,5.12682368]
[1770113227590,7.32268542,103.16,103.08,5.12682368]
[1770113227995,2.41108986,103.14,103.08,5.12682368]
[1770113228189,2.41108986,103.12,103.08,5.12682368]
[1770113229791,2.41108986,103.12,103.06,5.12682368]
[1770113229998,2.41108986,103.1,103.05,8.7402]
[1770113230201,2.41108986,103.1,103.05,13.86702368]
[1770113230594,2.41108986,103.1,103.06,5.12682368]
[1770113230899,2.41108986,103.12,103.07,5.12682368]
[1770113232198,2.41108986,103.12,103.07,13.86602368]
[1770113233792,2.41108986,103.12,103.08,8.7384]
[1770113234606,4.91159556,103.13,103.08,8.7384]
[1770113234803,4.91159556,103.11,103.06,8.7393]
[1770113235700,4.91159556,103.11,103.07,8.7388]
[1770113235901,13.64579556,103.13,103.07,8.7388]
[1770113237301,4.91159556,103.13,103.06,5.12682368]
[1770113237604,4.91159556,103.13,103.08,141.05782368]
[1770113237806,4.91159556,103.16,103.1,5.12682368]
[1770113238104,4.91159556,103.18,103.12,5.12682368]
[1770113239403,4.91159556,103.17,103.1,5.12682368]
[1770113239600,4.91159556,103.17,103.1,141.03002368]
[1770113239807,4.91159556,103.17,103.12,8.7343]
[1770113241597,13.64239556,103.17,103.11,13.86262368]
[1770113244608,13.52012137,103.16,103.11,8.7358]
[1770113244808,19.97315624,103.16,103.1,8.7366]
[1770113245011,4.78832137,103.15,103.1,8.7366]
[1770113246807,4.78832137,103.14,103.09,8.7375]
[1770113247006,4.78832137,103.13,103.07,4.57168075]
[1770113247404,13.52262137,103.13,103.07,13.31088075]
[1770113247898,13.52262137,103.13,103.04,4.57168075]
[1770113247899,4.78832137,103.12,103.04,4.57168075]
[1770113248104,11.24135624,103.12,103.04,4.57168075]
[1770113248300,13.52422137,103.11,103.05,8.7409]
[1770113248702,4.78832137,103.1,103.04,4.57168075]
[1770113250314,13.52512137,103.1,103.04,13.31338075]
[1770113252616,4.78832137,103.1,103.04,13.31338075]
[1770113253806,19.97655624,103.12,103.05,13.31258075]
[1770113254006,19.97655624,103.12,103.06,4.57168075]
[1770113254412,2.40958433,103.11,103.06,13.31178075]
[1770113255515,2.40958433,103.11,103.07,8.7393]
[1770113255717,2.40958433,103.11,103.06,4.57168075]
[1770113256313,2.40958433,103.11,103.08,8.7383]
[1770113256513,4.78832137,103.14,103.08,4.57168075]
[1770113256719,2.40958433,103.13,103.08,4.57168075]
[1770113257315,2.40958433,103.13,103.09,8.7374]
[1770113257517,2.40958433,103.11,103.08,4.57168075]
[1770113257719,2.40958433,103.11,103.06,4.57168075]
[1770113258017,2.40958433,103.09,103.04,4.57168075]
[1770113259316,7.1979057,103.09,103.04,13.31338075]
[1770113259621,7.1979057,103.09,103.02,4.57168075]
[1770113259819,2.40958433,103.07,103.03,8.7425]
[1770113260422,13.52602137,103.09,103.03,8.7425]
[1770113261721,4.78832137,103.08,103.03,8.7425]
[1770113262222,4.78832137,103.08,103.03,13.31418075]
[1770113262419,6.45869213,103.1,103.04,8.7416]
[1770113262420,19.9839135,103.1,103.04,8.7416]
[1770113262624,19.9839135,103.1,103.03,4.57168075]
[1770113263123,19.9839135,103.1,103.03,13.31418075]
[1770113263320,13.52522137,103.1,103.03,13.31418075]
[1770113263822,13.52522137,103.1,103.04,13.31338075]
[1770113265228,4.78832137,103.09,103.04,4.57168075]
[1770113266429,13.52612137,103.09,103.04,4.57168075]
[1770113269630,13.52612137,103.09,103.03,13.31418075]
[1770113270731,4.3561634,103.07,103.02,8.7434]
[1770113271129,4.3561634,103.07,103.01,4.18982087]
[1770113271329,4.3561634,103.05,102.99,12.93572087]
[1770113272333,13.0977634,103.05,102.99,12.93572087]
[1770113272833,4.3561634,103.05,103.0,8.7449]
[1770113273739,4.3561634,103.05,103.0,13.26694793]
[1770113274632,4.3561634,103.05,103.01,8.7443]
[1770113276837,4.3561634,103.05,103.0,13.26714793]
[1770113277044,4.3561634,103.05,103.0,8.7451]
[1770113279439,13.0971634,103.05,103.0,8.7451]
[1770113279841,13.0971634,103.05,102.99,4.52204793]
[1770113279842,13.0971634,103.05,102.99,13.26804793]
[1770113280045,13.1908608,103.04,102.99,4.52204793]
[1770113280238,13.1908608,103.04,102.97,4.52204793]
[1770113281449,13.1908608,103.04,102.98,13.26894793]
[1770113281644,297.88,103.05,102.99,4.52204793]
[1770113281947,297.88,103.05,103.0,4.52204793]
[1770113282448,300.29220253,103.05,103.0,4.52204793]
[1770113283248,2.41220253,103.05,103.0,4.52204793]
[1770113283444,2.41220253,103.05,103.0,13.26704793]
[1770113283942,4.4486608,103.06,103.0,13.26704793]
[1770113284139,2.41220253,103.07,103.02,4.52204793]
[1770113284945,2.41220253,103.07,103.03,8.7427]
[1770113286042,6.86086333,103.08,103.03,8.7427]
[1770113287944,4.4486608,103.07,103.02,8.7434]
[1770113288146,2.41220253,103.06,103.02,8.7434]
[1770113289244,2.41220253,103.06,103.0,4.52204793]
[1770113290443,2.41220253,103.06,103.01,13.26634793]
[1770113290950,2.41220253,103.04,102.99,13.26734793]
[1770113291242,2.41220253,103.04,102.99,4.52204793]
[1770113291243,6.86086333,103.04,102.99,4.52204793]
[1770113291448,2.41220253,103.02,102.97,4.52204793]
[1770113291641,2.41220253,103.02,102.98,8.7468]
[1770113291843,2.41220253,103.02,102.97,4.52204793]
[1770113292247,2.41220253,103.02,102.98,8.7469]
[1770113292447,2.41220253,103.02,102.98,13.26894793]
[1770113292648,2.41220253,103.03,102.98,13.26894793]
[1770113296353,4.4486608,103.05,102.98,13.26894793]
[1770113296555,4.4486608,103.05,102.99,8.7461]
[1770113297355,13.1898608,103.05,102.99,8.7461]
[1770113297853,13.1898608,103.05,102.99,13.26814793]
[1770113299850,4.4486608,103.03,102.95,4.52204793]
[1770113300153,10.91221473,103.02,102.95,4.52204793]
[1770113300554,19.65581473,103.02,102.96,8.7486]
[1770113300754,4.18941896,103.01,102.96,8.7486]
[1770113300954,4.18941896,103.01,102.95,4.52204793]
[1770113302350,12.93401896,103.01,102.95,13.27114793]
[1770113303261,12.93491896,103.0,102.95,4.52204793]
[1770113303559,4.18941896,102.99,102.92,4.29865605]
[1770113303756,4.18941896,102.98,102.92,4.29865605]
[1770113303950,4.18941896,102.97,102.92,4.29865605]
[1770113305454,12.93721896,102.97,102.92,4.29865605]
[1770113309967,4.18941896,102.97,102.92,4.29865605]
[1770113310763,4.18941896,102.96,102.9,22.92902679]
[1770113311063,4.18941896,102.95,102.88,4.29865605]
[1770113311468,4.18941896,102.94,102.88,4.29865605]
[1770113311868,4.18941896,102.94,102.88,13.05405605]
[1770113312166,4.18941896,102.94,102.88,22.69339896]
[1770113312867,4.18941896,102.94,102.89,13.05305605]
[1770113313361,4.18941896,102.94,102.89,4.29865605]
[1770113314567,4.18941896,102.94,102.89,13.05315605]
[1770113314967,4.18941896,102.94,102.89,4.29865605]
[1770113316573,6.60665318,102.94,102.89,4.29865605]
[1770113318869,6.60665318,102.94,102.89,13.05305605]
[1770113319470,15.35535318,102.96,102.9,13.05215605]
[1770113321580,15.35535318,102.96,102.91,4.29865605]
[1770113323180,4.18941896,102.96,102.91,13.05145605]
[1770113323379,6.60665318,102.96,102.91,13.05145605]
[1770113324182,15.35525318,102.96,102.91,13.05145605]
[1770113324880,4.18941896,102.95,102.89,4.29865605]
[1770113325280,6.60665318,102.95,102.89,4.29865605]
[1770113326284,6.60665318,102.95,102.9,8.7536]
[1770113327785,6.60665318,102.95,102.89,13.05295605]
[1770113328783,6.60665318,102.95,102.9,8.7536]
[1770113331393,3.86374639,102.94,102.89,13.05295605]
[1770113332489,3.86374639,102.94,102.89,8.7543]
[1770113333189,6.24363502,102.93,102.89,8.7543]
[1770113333385,6.24363502,102.93,102.88,12.61563027]
[1770113333582,3.8264008,102.93,102.88,8.7552]
[1770113333780,6.24363502,102.92,102.88,8.7552]
[1770113334192,2.41723422,102.92,102.89,8.7543]
[1770113334390,6.24363502,102.94,102.89,8.7543]
[1770113334691,6.24363502,102.94,102.88,3.86043027]
[1770113335586,3.8264008,102.93,102.88,3.86043027]
[1770113339695,12.5776008,102.93,102.88,3.86043027]
[1770113339899,2.41723422,102.92,102.88,3.86043027]
[1770113340590,6.24363502,102.92,102.86,12.61743027]
[1770113340792,2.41723422,102.88,102.84,3.86043027]
[1770113341188,6.24363502,102.9,102.85,3.86043027]
[1770113341992,2.41723422,102.91,102.86,3.86043027]
[1770113342390,6.24469689,102.92,102.86,3.86043027]
[1770113342600,6.24469689,102.92,102.87,3.86043027]
[1770113345397,2.41829609,102.92,102.88,3.86043027]
[1770113345603,14.99519689,102.94,102.88,3.86043027]
[1770113348998,6.24469689,102.94,102.88,12.61573027]
[1770113349903,6.24469689,102.94,102.89,3.86043027]
[1770113350407,14.99509689,102.94,102.89,3.86043027]
[1770113353707,2.41829609,102.94,102.9,3.86043027]
[1770113353908,313.24,102.95,102.9,3.86043027]
[1770113354708,313.24,102.95,102.9,12.61393027]
[1770113355305,313.24,102.95,102.9,3.86043027]
[1770113356806,313.24,102.95,102.9,12.61393027]
[1770113358311,14.99409689,102.96,102.9,12.61393027]
[1770113360212,6.24469689,102.96,102.91,12.61333027]
[1770113361114,6.24469689,102.96,102.91,3.86043027]
[1770113362008,6.24469689,102.96,102.87,136.2092]
[1770113362217,2.41829609,102.92,102.88,3.82788127]
[1770113363915,14.91342895,102.92,102.88,3.82788127]
[1770113364114,14.91342895,102.92,102.86,12.58488127]
[1770113364819,14.91342895,102.92,102.87,3.82788127]
[1770113365509,6.16132895,102.92,102.87,3.82788127]
[1770113367218,6.16132895,102.92,102.87,12.58408127]
[1770113372729,2.41829609,102.92,102.88,3.82788127]
[1770113373327,3.74303286,102.94,102.89,3.82788127]
[1770113373328,14.91192895,102.94,102.89,3.82788127]
[1770113375922,12.49363286,102.94,102.89,3.82788127]
[1770113376127,3.74303286,102.94,102.89,12.58208127]
[1770113376427,3.74303286,102.94,102.89,3.82788127]
[1770113376627,12.49343286,102.94,102.89,3.82788127]
[1770113376822,2.41829609,102.93,102.89,3.82788127]
[1770113377018,6.16132895,102.93,102.87,3.82788127]
[1770113377218,14.91322895,102.93,102.87,3.82788127]
[1770113377721,6.16132895,102.93,102.87,3.82788127]
[1770113379426,6.16132895,102.93,102.88,3.82788127]
[1770113380928,405.135,102.96,102.89,3.82788127]
[1770113380929,14.91102895,102.95,102.89,3.82788127]